[Event "Live Chess"]
[Site "Chess.com"]
[Date "2024.06.01"]
[Round "-"]
[White "GEMdzq"]
[Black "Tatarinov_Maxim"]
[Result "0-1"]
[WhiteElo "2313"]
[BlackElo "2298"]
[TimeControl "300"]
[EndTime "10:22:55 PDT"]
[Termination "Tatarinov_Maxim won by resignation"]

1. e4 {[%clk 0:04:57]} 1... c5 {[%clk 0:04:56.3]} 2. d4 {[%clk 0:04:55.7]} 2...
cxd4 {[%clk 0:04:54.1]} 3. c3 {[%clk 0:04:55.4]} 3... dxc3 {[%clk 0:04:53]} 4.
Nxc3 {[%clk 0:04:55.3]} 4... Nc6 {[%clk 0:04:52.5]} 5. Bc4 {[%clk 0:04:55]} 5...
e6 {[%clk 0:04:50.6]} 6. Nf3 {[%clk 0:04:54.5]} 6... d6 {[%clk 0:04:49.2]} 7.
O-O {[%clk 0:04:53.8]} 7... Nf6 {[%clk 0:04:48.6]} 8. Qe2 {[%clk 0:04:53]} 8...
Be7 {[%clk 0:04:48.1]} 9. Rd1 {[%clk 0:04:52.5]} 9... e5 {[%clk 0:04:46.9]} 10.
h3 {[%clk 0:04:47.9]} 10... O-O {[%clk 0:04:44.9]} 11. Bg5 {[%clk 0:04:46.8]}
11... Be6 {[%clk 0:04:42.3]} 12. Bxe6 {[%clk 0:04:43.7]} 12... fxe6 {[%clk
0:04:42.2]} 13. Qc4 {[%clk 0:04:42.5]} 13... Qc8 {[%clk 0:04:40.6]} 14. Nb5
{[%clk 0:04:31.6]} 14... Nd4 {[%clk 0:04:34.2]} 15. Rac1 {[%clk 0:04:10.3]}
15... Nxf3+ {[%clk 0:04:30.6]} 16. gxf3 {[%clk 0:04:08.8]} 16... Qxc4 {[%clk
0:04:25.9]} 17. Rxc4 {[%clk 0:04:07.4]} 17... a6 {[%clk 0:04:05]} 18. Nc7 {[%clk
0:04:02.1]} 18... Rac8 {[%clk 0:04:03.6]} 19. Rcc1 {[%clk 0:03:56.4]} 19... Kf7
{[%clk 0:03:56.8]} 20. Be3 {[%clk 0:03:49.6]} 20... Ne8 {[%clk 0:03:34.9]} 21.
Bb6 {[%clk 0:03:07]} 21... Nxc7 {[%clk 0:03:23.9]} 22. Rxc7 {[%clk 0:02:57.5]}
22... Rxc7 {[%clk 0:03:16.2]} 23. Bxc7 {[%clk 0:02:57.4]} 23... Rc8 {[%clk
0:03:10.2]} 24. Ba5 {[%clk 0:02:52.4]} 24... Rc2 {[%clk 0:03:05.2]} 25. Bc3
{[%clk 0:02:50.5]} 25... b5 {[%clk 0:03:03.4]} 26. Rd2 {[%clk 0:02:47.2]} 26...
Rxd2 {[%clk 0:03:00.6]} 27. Bxd2 {[%clk 0:02:47.1]} 27... d5 {[%clk 0:02:56.5]}
28. Kf1 {[%clk 0:02:42.8]} 28... Bc5 {[%clk 0:02:54.9]} 29. Ke2 {[%clk
0:02:40.6]} 29... Bd4 {[%clk 0:02:54.2]} 30. b3 {[%clk 0:02:36.7]} 30... Ke7
{[%clk 0:02:47.7]} 31. Bb4+ {[%clk 0:02:21.8]} 31... Kd7 {[%clk 0:02:44.9]} 32.
h4 {[%clk 0:02:18.3]} 32... g6 {[%clk 0:02:42.9]} 33. Bd2 {[%clk 0:02:10.2]}
33... h5 {[%clk 0:02:41.7]} 34. f4 {[%clk 0:02:03.2]} 34... dxe4 {[%clk
0:02:36.8]} 35. fxe5 {[%clk 0:02:02.2]} 35... Kc6 {[%clk 0:02:33.7]} 36. f4
{[%clk 0:01:53.3]} 36... exf3+ {[%clk 0:02:29.2]} 37. Kxf3 {[%clk 0:01:52.3]}
37... Kd5 {[%clk 0:02:29.1]} 38. Bh6 {[%clk 0:01:48.1]} 38... Bxe5 {[%clk
0:02:25.8]} 39. Bg5 {[%clk 0:01:47.3]} 39... Bd4 {[%clk 0:02:21.2]} 40. Ke2
{[%clk 0:01:43.9]} 40... e5 {[%clk 0:02:20.2]} 0-1

[Event "Live Chess"]
[Site "Chess.com"]
[Date "2024.06.01"]
[Round "-"]
[White "Queensandpawns"]
[Black "vincents82"]
[Result "1-0"]
[WhiteElo "2477"]
[BlackElo "2139"]
[TimeControl "300"]
[EndTime "10:23:08 PDT"]
[Termination "Queensandpawns won by resignation"]

1. e4 {[%clk 0:04:58.9]} 1... d5 {[%clk 0:04:47.7]} 2. Nc3 {[%clk 0:04:57.6]}
2... dxe4 {[%clk 0:04:39.5]} 3. Nxe4 {[%clk 0:04:57.5]} 3... Nd7 {[%clk
0:04:38.8]} 4. Nf3 {[%clk 0:04:49.8]} 4... Ngf6 {[%clk 0:04:37.7]} 5. Neg5
{[%clk 0:04:49.2]} 5... e6 {[%clk 0:04:33.5]} 6. d4 {[%clk 0:04:48.5]} 6... Be7
{[%clk 0:04:32.3]} 7. Bd3 {[%clk 0:04:47.3]} 7... O-O {[%clk 0:04:30]} 8. Be3
{[%clk 0:04:43.7]} 8... h6 {[%clk 0:04:29]} 9. h4 {[%clk 0:04:43.1]} 9... c5
{[%clk 0:04:27.7]} 10. c3 {[%clk 0:04:41.9]} 10... b6 {[%clk 0:04:26.3]} 11. Ne4
{[%clk 0:04:30.2]} 11... Bb7 {[%clk 0:04:09.7]} 12. Nxf6+ {[%clk 0:04:26.3]}
12... Nxf6 {[%clk 0:04:06.2]} 13. O-O {[%clk 0:04:25.8]} 13... Ng4 {[%clk
0:03:59.2]} 14. Bc2 {[%clk 0:04:09]} 14... Bxh4 {[%clk 0:03:51.3]} 15. Qd3
{[%clk 0:04:02.4]} 15... f5 {[%clk 0:03:43.5]} 16. dxc5 {[%clk 0:03:53.8]} 16...
Qc7 {[%clk 0:03:17.2]} 17. Qd6 {[%clk 0:03:44.4]} 17... Qxd6 {[%clk 0:02:59.9]}
18. cxd6 {[%clk 0:03:44.3]} 18... Bxf3 {[%clk 0:02:56]} 19. gxf3 {[%clk
0:03:41.2]} 19... Nxe3 {[%clk 0:02:39.9]} 20. fxe3 {[%clk 0:03:41.1]} 20... e5
{[%clk 0:02:37.3]} 21. Rad1 {[%clk 0:03:31.9]} 21... Rad8 {[%clk 0:02:33.8]} 22.
Rd5 {[%clk 0:03:29.4]} 22... Bf6 {[%clk 0:02:28.5]} 23. Rfd1 {[%clk 0:03:27.8]}
23... f4 {[%clk 0:02:20.9]} 24. e4 {[%clk 0:03:20.6]} 24... g5 {[%clk
0:02:12.3]} 25. b4 {[%clk 0:03:13.6]} 25... h5 {[%clk 0:02:10.6]} 26. Bb3 {[%clk
0:03:11.5]} 26... Kg7 {[%clk 0:02:09.3]} 27. c4 {[%clk 0:03:10.9]} 27... g4
{[%clk 0:02:08.2]} 28. c5 {[%clk 0:03:10.2]} 28... bxc5 {[%clk 0:02:06.5]} 29.
bxc5 {[%clk 0:03:10.1]} 29... g3 {[%clk 0:01:44.2]} 30. c6 {[%clk 0:03:07.8]}
30... h4 {[%clk 0:01:41.2]} 31. d7 {[%clk 0:03:05.7]} 31... h3 {[%clk
0:01:36.2]} 32. c7 {[%clk 0:03:04.6]} 32... g2 {[%clk 0:01:32]} 33. cxd8=Q
{[%clk 0:03:01.9]} 33... Bxd8 {[%clk 0:01:30.9]} 34. Kh2 {[%clk 0:02:58.9]}
34... Kf6 {[%clk 0:01:25.1]} 35. Rd6+ {[%clk 0:02:56.5]} 35... Ke7 {[%clk
0:01:23.5]} 36. Re6+ {[%clk 0:02:55.8]} 36... Kf7 {[%clk 0:01:21.4]} 37. Re8+
{[%clk 0:02:55.3]} 37... Kg7 {[%clk 0:01:19.9]} 38. Rxf8 {[%clk 0:02:55.2]}
38... Kxf8 {[%clk 0:01:18.9]} 39. Kxh3 {[%clk 0:02:55.1]} 1-0

[Event "Live Chess"]
[Site "Chess.com"]
[Date "2024.06.01"]
[Round "-"]
[White "MagnersCarlsberg2870"]
[Black "NottheBishopSacrifice"]
[Result "0-1"]
[WhiteElo "1890"]
[BlackElo "2200"]
[TimeControl "300"]
[EndTime "10:23:10 PDT"]
[Termination "NottheBishopSacrifice won by resignation"]

1. Nf3 {[%clk 0:04:55.3]} 1... c6 {[%clk 0:04:46.1]} 2. g3 {[%clk 0:04:53.9]}
2... d5 {[%clk 0:04:44.6]} 3. Bg2 {[%clk 0:04:53.2]} 3... Nd7 {[%clk 0:04:43.6]}
4. d3 {[%clk 0:04:51.2]} 4... e5 {[%clk 0:04:42.3]} 5. e4 {[%clk 0:04:49.7]}
5... Ngf6 {[%clk 0:04:41.1]} 6. Nbd2 {[%clk 0:04:48.4]} 6... Bd6 {[%clk
0:04:39.7]} 7. O-O {[%clk 0:04:47.5]} 7... O-O {[%clk 0:04:37.7]} 8. Re1 {[%clk
0:04:46.6]} 8... Re8 {[%clk 0:04:36.9]} 9. Nf1 {[%clk 0:04:39.3]} 9... Nc5
{[%clk 0:04:35.4]} 10. Bg5 {[%clk 0:04:34.9]} 10... h6 {[%clk 0:04:33]} 11. Be3
{[%clk 0:04:20]} 11... d4 {[%clk 0:04:30.8]} 12. Bd2 {[%clk 0:04:18.9]} 12...
Ne6 {[%clk 0:04:30.4]} 13. h4 {[%clk 0:04:16.8]} 13... c5 {[%clk 0:04:27.6]} 14.
Bh3 {[%clk 0:04:11.2]} 14... b5 {[%clk 0:04:26.1]} 15. N1h2 {[%clk 0:04:08.2]}
15... Bd7 {[%clk 0:04:23.9]} 16. Ng4 {[%clk 0:04:01.9]} 16... Nxg4 {[%clk
0:04:07.8]} 17. Bxg4 {[%clk 0:04:00.7]} 17... c4 {[%clk 0:04:07.5]} 18. Nh2
{[%clk 0:03:58.8]} 18... Rc8 {[%clk 0:04:03]} 19. Rf1 {[%clk 0:03:52.1]} 19...
cxd3 {[%clk 0:04:00.2]} 20. cxd3 {[%clk 0:03:51]} 20... Qe7 {[%clk 0:03:59.1]}
21. f4 {[%clk 0:03:48.3]} 21... exf4 {[%clk 0:03:57.9]} 22. gxf4 {[%clk
0:03:47.3]} 22... Nc5 {[%clk 0:03:57.5]} 23. e5 {[%clk 0:03:45.7]} 23... Bb8
{[%clk 0:03:54.2]} 24. Bxd7 {[%clk 0:03:44.3]} 24... Qxd7 {[%clk 0:03:54]} 25.
Bb4 {[%clk 0:03:39.2]} 25... a5 {[%clk 0:03:50]} 26. Bxc5 {[%clk 0:03:37.5]}
26... Rxc5 {[%clk 0:03:48.5]} 27. Qh5 {[%clk 0:03:36.5]} 27... Qh3 {[%clk
0:03:44.8]} 28. Kh1 {[%clk 0:03:31.2]} 28... Rc2 {[%clk 0:03:43.1]} 0-1

[Event "Live Chess"]
[Site "Chess.com"]
[Date "2024.06.01"]
[Round "-"]
[White "Berdgross"]
[Black "MaximKhimchenko"]
[Result "0-1"]
[WhiteElo "592"]
[BlackElo "1782"]
[TimeControl "300"]
[EndTime "10:23:18 PDT"]
[Termination "MaximKhimchenko won by resignation"]

1. e4 {[%clk 0:04:55.5]} 1... b6 {[%clk 0:04:59.9]} 2. d3 {[%clk 0:04:54.8]}
2... Bb7 {[%clk 0:04:59.8]} 3. Nc3 {[%clk 0:04:50.6]} 3... c5 {[%clk 0:04:53.3]}
4. Nf3 {[%clk 0:04:50.5]} 4... Nc6 {[%clk 0:04:48]} 5. a3 {[%clk 0:04:42.8]}
5... g6 {[%clk 0:04:46.8]} 6. Ne5 {[%clk 0:04:40.4]} 6... Nxe5 {[%clk
0:04:44.9]} 7. Be2 {[%clk 0:04:36.9]} 7... Bg7 {[%clk 0:04:43.7]} 8. O-O {[%clk
0:04:29.9]} 8... d5 {[%clk 0:04:41.1]} 9. exd5 {[%clk 0:04:28.4]} 9... Bxd5
{[%clk 0:04:41]} 10. Nxd5 {[%clk 0:04:27.1]} 10... Qxd5 {[%clk 0:04:40.9]} 11.
Bf3 {[%clk 0:04:25.2]} 11... Nxf3+ {[%clk 0:04:39.6]} 12. Qxf3 {[%clk
0:04:23.3]} 12... Qxf3 {[%clk 0:04:38.5]} 13. gxf3 {[%clk 0:04:20.4]} 13...
O-O-O {[%clk 0:04:38.4]} 14. Bg5 {[%clk 0:04:16.4]} 14... Rd5 {[%clk 0:04:36.7]}
15. Rfe1 {[%clk 0:04:06.9]} 15... Rxg5+ {[%clk 0:04:17.6]} 16. Kh1 {[%clk
0:04:04]} 16... e6 {[%clk 0:04:17.5]} 17. f4 {[%clk 0:04:01.6]} 17... Rf5 {[%clk
0:04:16]} 18. Kg2 {[%clk 0:03:56.7]} 18... Rxf4 {[%clk 0:04:13.4]} 0-1

[Event "Live Chess"]
[Site "Chess.com"]
[Date "2024.06.01"]
[Round "-"]
[White "kylet1990"]
[Black "CarmelJane"]
[Result "0-1"]
[WhiteElo "724"]
[BlackElo "2104"]
[TimeControl "300"]
[EndTime "10:23:31 PDT"]
[Termination "CarmelJane won by resignation"]

1. e4 {[%clk 0:04:58.1]} 1... c5 {[%clk 0:04:58.3]} 2. Nc3 {[%clk 0:04:54.6]}
2... e6 {[%clk 0:04:53.6]} 3. Nf3 {[%clk 0:04:50.5]} 3... a6 {[%clk 0:04:52.5]}
4. d4 {[%clk 0:04:47.8]} 4... cxd4 {[%clk 0:04:52.4]} 5. Nxd4 {[%clk 0:04:44.8]}
5... Qc7 {[%clk 0:04:51.7]} 6. Be3 {[%clk 0:04:37]} 6... Bb4 {[%clk 0:04:46.4]}
7. Bd2 {[%clk 0:04:31.6]} 7... Nf6 {[%clk 0:04:43.8]} 8. Bc4 {[%clk 0:04:19.8]}
8... O-O {[%clk 0:04:23.7]} 9. Bb3 {[%clk 0:04:10.1]} 9... Bxc3 {[%clk
0:04:10.8]} 10. Bxc3 {[%clk 0:04:08.1]} 10... Nxe4 {[%clk 0:04:09.9]} 11. O-O
{[%clk 0:03:56.8]} 11... Nxc3 {[%clk 0:04:07.9]} 12. bxc3 {[%clk 0:03:54.1]}
12... b5 {[%clk 0:04:00.2]} 13. a4 {[%clk 0:03:45.5]} 13... bxa4 {[%clk
0:03:55.5]} 14. Bxa4 {[%clk 0:03:41.5]} 14... Bb7 {[%clk 0:03:51.5]} 15. Qg4
{[%clk 0:03:26.1]} 15... Nc6 {[%clk 0:03:35.1]} 16. Rad1 {[%clk 0:03:17.4]}
16... Nxd4 {[%clk 0:03:14.8]} 17. Rxd4 {[%clk 0:03:11.7]} 17... Bc6 {[%clk
0:03:12]} 18. Bxc6 {[%clk 0:03:06.5]} 18... Qxc6 {[%clk 0:03:11.9]} 19. Rfd1
{[%clk 0:03:00.9]} 19... d5 {[%clk 0:03:07.1]} 20. R1d3 {[%clk 0:02:54.8]} 20...
Rab8 {[%clk 0:02:46.1]} 21. h3 {[%clk 0:02:51.8]} 21... Rb1+ {[%clk 0:02:36.3]}
22. Kh2 {[%clk 0:02:48.4]} 22... Qd6+ {[%clk 0:02:07.3]} 23. Rg3 {[%clk
0:02:41.9]} 23... g6 {[%clk 0:02:06.6]} 24. f4 {[%clk 0:02:31.9]} 24... Rc8
{[%clk 0:01:47.5]} 25. Rdd3 {[%clk 0:02:26.5]} 25... Rf1 {[%clk 0:01:42]} 26.
Rdf3 {[%clk 0:02:21.1]} 26... Rxf3 {[%clk 0:01:40.2]} 27. Rxf3 {[%clk
0:02:15.8]} 27... Rc4 {[%clk 0:01:37.8]} 28. Qg3 {[%clk 0:02:06.7]} 28... Qc7
{[%clk 0:01:36.2]} 29. Qh4 {[%clk 0:01:55.2]} 29... a5 {[%clk 0:01:34]} 30. Rf1
{[%clk 0:01:49.1]} 30... a4 {[%clk 0:01:27.7]} 31. Ra1 {[%clk 0:01:46.9]} 31...
Rxf4 {[%clk 0:01:23.5]} 32. g3 {[%clk 0:01:36.5]} 32... Rxh4 {[%clk 0:01:22.1]}
33. Kg2 {[%clk 0:01:23.5]} 33... Rc4 {[%clk 0:01:10.3]} 34. Rb1 {[%clk
0:01:18.3]} 34... Rxc3 {[%clk 0:01:09.2]} 0-1

[Event "Live Chess"]
[Site "Chess.com"]
[Date "2024.06.01"]
[Round "-"]
[White "DenisOnopriichuk2003"]
[Black "grillage"]
[Result "0-1"]
[WhiteElo "1827"]
[BlackElo "1906"]
[TimeControl "300"]
[EndTime "10:23:33 PDT"]
[Termination "grillage won by resignation"]

1. d4 {[%clk 0:04:58]} 1... e6 {[%clk 0:04:58.8]} 2. Bf4 {[%clk 0:04:56.3]} 2...
Nf6 {[%clk 0:04:55.4]} 3. e3 {[%clk 0:04:55.5]} 3... c5 {[%clk 0:04:54.9]} 4. c3
{[%clk 0:04:54.2]} 4... cxd4 {[%clk 0:04:54.4]} 5. exd4 {[%clk 0:04:54.1]} 5...
Be7 {[%clk 0:04:50.1]} 6. Bd3 {[%clk 0:04:46.7]} 6... b6 {[%clk 0:04:49.2]} 7.
Qf3 {[%clk 0:04:40.6]} 7... Nc6 {[%clk 0:04:25.4]} 8. Bb5 {[%clk 0:04:38.9]}
8... Bb7 {[%clk 0:04:24.2]} 9. Qg3 {[%clk 0:04:36.8]} 9... O-O {[%clk
0:04:20.7]} 10. Bh6 {[%clk 0:04:35.4]} 10... Nh5 {[%clk 0:04:19.9]} 11. Qg4
{[%clk 0:04:34.5]} 11... Kh8 {[%clk 0:03:47.7]} 12. Qxh5 {[%clk 0:04:25.8]}
12... gxh6 {[%clk 0:03:46.7]} 13. Qxh6 {[%clk 0:04:25.7]} 13... Rg8 {[%clk
0:03:35.6]} 14. Qh3 {[%clk 0:04:20.4]} 14... Nxd4 {[%clk 0:03:21.2]} 15. Nf3
{[%clk 0:04:12.5]} 15... Nxb5 {[%clk 0:03:18.8]} 16. a4 {[%clk 0:04:10.9]} 16...
Nd6 {[%clk 0:03:17.6]} 17. Nbd2 {[%clk 0:04:10.3]} 17... Nf5 {[%clk 0:03:11.9]}
18. O-O-O {[%clk 0:04:06.6]} 18... Rc8 {[%clk 0:03:07.2]} 19. Ne5 {[%clk
0:04:03.3]} 19... Qe8 {[%clk 0:02:52.3]} 20. Qh5 {[%clk 0:03:59.7]} 20... Rg7
{[%clk 0:02:47.7]} 21. g4 {[%clk 0:03:57.6]} 21... Nd6 {[%clk 0:02:42.5]} 22.
Rhf1 {[%clk 0:03:52.6]} 22... f6 {[%clk 0:02:40.8]} 0-1

[Event "Live Chess"]
[Site "Chess.com"]
[Date "2024.06.01"]
[Round "-"]
[White "defenderalist"]
[Black "sshamil"]
[Result "1-0"]
[WhiteElo "1498"]
[BlackElo "1684"]
[TimeControl "300"]
[EndTime "10:23:39 PDT"]
[Termination "defenderalist won by resignation"]

1. e4 {[%clk 0:04:58.3]} 1... Nc6 {[%clk 0:04:54.8]} 2. d4 {[%clk 0:04:55.8]}
2... d6 {[%clk 0:04:34.4]} 3. Bb5 {[%clk 0:04:53.5]} 3... Bd7 {[%clk 0:04:33.1]}
4. Nf3 {[%clk 0:04:51.2]} 4... g6 {[%clk 0:04:32.4]} 5. d5 {[%clk 0:04:48.8]}
5... Ne5 {[%clk 0:04:11.4]} 6. Bxd7+ {[%clk 0:04:47.4]} 6... Qxd7 {[%clk
0:04:08.7]} 7. Nxe5 {[%clk 0:04:46.3]} 7... dxe5 {[%clk 0:04:08.1]} 8. O-O
{[%clk 0:04:42.8]} 8... e6 {[%clk 0:04:07.1]} 9. c4 {[%clk 0:04:40.6]} 9... exd5
{[%clk 0:04:05.6]} 10. cxd5 {[%clk 0:04:34.1]} 10... O-O-O {[%clk 0:04:04.2]}
11. f4 {[%clk 0:04:30.2]} 11... exf4 {[%clk 0:04:01.7]} 12. Bxf4 {[%clk
0:04:28.8]} 12... Bd6 {[%clk 0:04:00.6]} 13. e5 {[%clk 0:04:26.5]} 13... Bc5+
{[%clk 0:03:57.8]} 14. Kh1 {[%clk 0:04:22.6]} 14... Qxd5 {[%clk 0:03:56.1]} 15.
Qg4+ {[%clk 0:04:15.7]} 15... Kb8 {[%clk 0:03:53.3]} 16. Nc3 {[%clk 0:04:14]}
16... Qc6 {[%clk 0:03:45.8]} 17. h3 {[%clk 0:04:06.6]} 17... h5 {[%clk
0:03:44.7]} 18. Qg5 {[%clk 0:04:01.8]} 18... Be7 {[%clk 0:03:41.1]} 19. Qg3
{[%clk 0:03:55.7]} 19... Nh6 {[%clk 0:03:39.9]} 20. Rac1 {[%clk 0:03:50]} 20...
Nf5 {[%clk 0:03:37.7]} 21. Qf2 {[%clk 0:03:34.7]} 21... Bc5 {[%clk 0:03:35.5]}
22. Qe2 {[%clk 0:03:19.6]} 22... Rd4 {[%clk 0:03:19.9]} 23. Nb5 {[%clk
0:03:10.6]} 23... Re4 {[%clk 0:03:05.1]} 24. Qf3 {[%clk 0:02:51.4]} 24... b6
{[%clk 0:02:52.1]} 25. e6 {[%clk 0:02:43.9]} 25... Rxf4 {[%clk 0:02:39]} 26.
Qxc6 {[%clk 0:02:39.5]} 26... Ng3+ {[%clk 0:02:34.4]} 27. Kh2 {[%clk 0:02:28.8]}
27... Nxf1+ {[%clk 0:02:28]} 28. Rxf1 {[%clk 0:02:26.8]} 28... Bd6 {[%clk
0:02:27]} 29. Nxd6 {[%clk 0:02:16.7]} 1-0

[Event "Live Chess"]
[Site "Chess.com"]
[Date "2024.06.01"]
[Round "-"]
[White "jimwad"]
[Black "AnotherOneBadPlayer"]
[Result "0-1"]
[WhiteElo "1243"]
[BlackElo "2173"]
[TimeControl "300"]
[EndTime "10:24:02 PDT"]
[Termination "AnotherOneBadPlayer won by checkmate"]

1. d4 {[%clk 0:04:59.4]} 1... Nf6 {[%clk 0:04:58.1]} 2. c4 {[%clk 0:04:57.9]}
2... g6 {[%clk 0:04:57]} 3. Nc3 {[%clk 0:04:57]} 3... Bg7 {[%clk 0:04:55.6]} 4.
e3 {[%clk 0:04:56]} 4... d6 {[%clk 0:04:54.6]} 5. Nf3 {[%clk 0:04:55.1]} 5...
O-O {[%clk 0:04:53.2]} 6. Bd3 {[%clk 0:04:53.6]} 6... Nc6 {[%clk 0:04:51.6]} 7.
O-O {[%clk 0:04:52.8]} 7... e5 {[%clk 0:04:48.4]} 8. d5 {[%clk 0:04:51.2]} 8...
Ne7 {[%clk 0:04:47.2]} 9. Be2 {[%clk 0:04:49.6]} 9... a5 {[%clk 0:04:40.3]} 10.
a3 {[%clk 0:04:48]} 10... Nd7 {[%clk 0:04:38.2]} 11. e4 {[%clk 0:04:47.2]} 11...
Nc5 {[%clk 0:04:34.7]} 12. Bd3 {[%clk 0:04:42.6]} 12... f5 {[%clk 0:04:29.9]}
13. exf5 {[%clk 0:04:37.3]} 13... gxf5 {[%clk 0:04:28.3]} 14. Ng5 {[%clk
0:04:14.7]} 14... h6 {[%clk 0:04:18]} 15. Nh3 {[%clk 0:04:10.1]} 15... Qe8
{[%clk 0:04:07.2]} 16. f3 {[%clk 0:03:56.5]} 16... Qg6 {[%clk 0:03:46.2]} 17.
Qe2 {[%clk 0:03:48.6]} 17... c6 {[%clk 0:03:34.2]} 18. dxc6 {[%clk 0:03:44.8]}
18... bxc6 {[%clk 0:03:31.2]} 19. Bd2 {[%clk 0:03:42.5]} 19... d5 {[%clk
0:03:26.2]} 20. b4 {[%clk 0:03:38.7]} 20... Nb3 {[%clk 0:03:17.6]} 21. Rab1
{[%clk 0:03:32]} 21... Nxd2 {[%clk 0:03:13.1]} 22. Qxd2 {[%clk 0:03:31]} 22...
e4 {[%clk 0:03:10.7]} 23. fxe4 {[%clk 0:03:29.5]} 23... fxe4 {[%clk 0:03:04.3]}
24. Rxf8+ {[%clk 0:03:26.6]} 24... Bxf8 {[%clk 0:02:58.2]} 25. Be2 {[%clk
0:03:13.3]} 25... Bxh3 {[%clk 0:02:54.8]} 26. cxd5 {[%clk 0:03:09]} 26... Qxg2#
{[%clk 0:02:52.1]} 0-1

[Event "Live Chess"]
[Site "Chess.com"]
[Date "2024.06.01"]
[Round "-"]
[White "Brooms1989"]
[Black "DavrosLight"]
[Result "1-0"]
[WhiteElo "1073"]
[BlackElo "764"]
[TimeControl "300"]
[EndTime "10:24:11 PDT"]
[Termination "Brooms1989 won by resignation"]

1. e4 {[%clk 0:04:56]} 1... e5 {[%clk 0:04:58.4]} 2. Nc3 {[%clk 0:04:54.8]} 2...
Bb4 {[%clk 0:04:55]} 3. a3 {[%clk 0:04:37.2]} 3... Bxc3 {[%clk 0:04:53]} 4. bxc3
{[%clk 0:04:36]} 4... Nf6 {[%clk 0:04:51.6]} 5. d3 {[%clk 0:04:31.6]} 5... Nc6
{[%clk 0:04:49.5]} 6. f4 {[%clk 0:04:27.4]} 6... O-O {[%clk 0:04:41.7]} 7. Nf3
{[%clk 0:04:25]} 7... exf4 {[%clk 0:04:32.3]} 8. Bxf4 {[%clk 0:04:23.3]} 8... d5
{[%clk 0:04:21]} 9. e5 {[%clk 0:04:10.6]} 9... Re8 {[%clk 0:04:16.5]} 10. d4
{[%clk 0:04:05.2]} 10... Ne4 {[%clk 0:04:01.8]} 11. Bd2 {[%clk 0:03:46]} 11...
Qh4+ {[%clk 0:03:42.3]} 12. Nxh4 {[%clk 0:03:43.3]} 1-0

[Event "Live Chess"]
[Site "Chess.com"]
[Date "2024.06.01"]
[Round "-"]
[White "NeilDruggan73"]
[Black "LaupMiths"]
[Result "0-1"]
[WhiteElo "1752"]
[BlackElo "1853"]
[TimeControl "300"]
[EndTime "10:24:20 PDT"]
[Termination "LaupMiths won by resignation"]

1. d4 {[%clk 0:04:56.4]} 1... Nf6 {[%clk 0:04:57.8]} 2. Bg5 {[%clk 0:04:53.7]}
2... Ne4 {[%clk 0:04:55.7]} 3. h4 {[%clk 0:04:50.8]} 3... h6 {[%clk 0:04:53.6]}
4. Bf4 {[%clk 0:04:47.2]} 4... d5 {[%clk 0:04:53.1]} 5. e3 {[%clk 0:04:43.3]}
5... e6 {[%clk 0:04:49.5]} 6. Bd3 {[%clk 0:04:41.9]} 6... Bd6 {[%clk 0:04:43.7]}
7. Ne2 {[%clk 0:04:33.9]} 7... Bxf4 {[%clk 0:04:41.7]} 8. Nxf4 {[%clk
0:04:32.2]} 8... Nf6 {[%clk 0:04:36.6]} 9. c3 {[%clk 0:04:20.3]} 9... Qe7 {[%clk
0:04:26.6]} 10. Nd2 {[%clk 0:04:14.9]} 10... Nbd7 {[%clk 0:04:22]} 11. Qc2
{[%clk 0:03:56.6]} 11... e5 {[%clk 0:04:18.4]} 12. dxe5 {[%clk 0:03:45.4]} 12...
Nxe5 {[%clk 0:04:16.6]} 13. Be2 {[%clk 0:03:26.2]} 13... c6 {[%clk 0:04:10.1]}
14. O-O-O {[%clk 0:03:23.8]} 14... g6 {[%clk 0:04:07.1]} 15. f3 {[%clk
0:03:20.1]} 15... b6 {[%clk 0:03:49.5]} 16. e4 {[%clk 0:02:58.7]} 16... dxe4
{[%clk 0:03:39.4]} 17. Nxe4 {[%clk 0:02:50.5]} 17... O-O {[%clk 0:03:33.6]} 18.
g4 {[%clk 0:02:27.2]} 18... Be6 {[%clk 0:03:20.6]} 19. g5 {[%clk 0:02:13.9]}
19... Nxe4 {[%clk 0:03:10.4]} 20. fxe4 {[%clk 0:01:57.1]} 20... h5 {[%clk
0:03:06.8]} 21. Kb1 {[%clk 0:01:43]} 21... Rfd8 {[%clk 0:02:56]} 22. Rxd8+
{[%clk 0:01:36.3]} 22... Rxd8 {[%clk 0:02:53.4]} 23. Rd1 {[%clk 0:01:35.9]}
23... Rd6 {[%clk 0:02:45.3]} 24. Nxe6 {[%clk 0:01:20.6]} 24... Qxe6 {[%clk
0:02:42.9]} 25. Rxd6 {[%clk 0:01:10]} 25... Qxd6 {[%clk 0:02:41.4]} 26. a3
{[%clk 0:01:01.7]} 26... c5 {[%clk 0:02:12.4]} 27. b4 {[%clk 0:00:53.1]} 27...
Qc7 {[%clk 0:02:01.7]} 28. c4 {[%clk 0:00:36.3]} 28... Qd6 {[%clk 0:01:53.8]}
29. b5 {[%clk 0:00:25.2]} 29... Qd4 {[%clk 0:01:51.4]} 30. a4 {[%clk 0:00:19.5]}
30... Kg7 {[%clk 0:01:48.9]} 31. Kc1 {[%clk 0:00:16.9]} 31... Qa1+ {[%clk
0:01:39.8]} 32. Qb1 {[%clk 0:00:15.3]} 32... Qc3+ {[%clk 0:01:38.1]} 33. Qc2
{[%clk 0:00:14.7]} 33... Qe1+ {[%clk 0:01:36.5]} 34. Kb2 {[%clk 0:00:13]} 34...
Qxh4 {[%clk 0:01:33.5]} 35. Qd2 {[%clk 0:00:11.4]} 35... Qh2 {[%clk 0:01:28.4]}
36. Qe3 {[%clk 0:00:09.2]} 36... Kh7 {[%clk 0:01:15.9]} 37. Kc3 {[%clk
0:00:08.6]} 37... h4 {[%clk 0:01:04.3]} 38. Qd3 {[%clk 0:00:04.3]} 38... Nxd3
{[%clk 0:01:02.2]} 0-1